[Event "LTU-chT 2019"]
[Site "Lithuania"]
[Date "2019.03.31"]
[Round "5.2"]
[White "Krivonosov, Oleg"]
[Black "Mickevicius, Juras"]
[Result "1-0"]
[ECO "A05"]
[WhiteElo "2398"]
[BlackElo "2273"]
[Annotator "NA"]
[PlyCount "119"]
[EventDate "2019.01.26"]
[EventType "team-tourn"]
[EventCountry "LTU"]
[SourceTitle "playchess.com"]
[Source "ChessBase"]
[SourceQuality "1"]
[TimeControl "40/5400+30:1800+30"]

1. Nf3 {[%emt 0:00:00]} Nf6 {[%emt 0:00:00]} 2. c4 {[%emt 0:00:00]} e6 {[%emt 0:00:00]} 3. g3 {[%emt 0:00:00]} d5 {[%emt 0:00:00]} 4. d4 {[%emt 0:00:16]} Bb4+ {[%emt 0:00:16]} 5. Bd2 {[%emt 0:00:10]} Be7 {[%emt 0:00:02]} 6. Bg2 {[%emt 0:00:17]} O-O {[%emt 0:00:05] LiveBook: 3907 Games} 7. O-O {[%emt 0:00:39]} c6 {[%emt 0:00:01]} 8. Qc2 {[%emt 0:01:06]} Nbd7 {[%emt 0:00:13]} 9. Bf4 {[%emt 0:01:19]} b6 {[%emt 0:01:33]} 10. Rd1 {[%emt 0:01:28]} Bb7 {[%emt 0:00:20]} 11. Ne5 {[%emt 0:02:20]} Nh5 {[%emt 0:00:21]} 12. Bd2 {[%emt 0:01:54]} Nhf6 {[%emt 0:00:04]} 13. cxd5 {[%emt 0:00:56]} cxd5 {[%emt 0:00:03]} 14. Nc6 {[%emt 0:00:23]} Bxc6 {[%emt 0:00:03]} 15. Qxc6 {[%emt 0:00:04]} Rc8 {[%emt 0:00:03]} 16. Qb5 {[%emt 0:00:49]} Ne8 {[%emt 0:00:31]} 17. Qd3 {[%emt 0:01:46]} Nd6 {[%emt 0:00:45]} 18. b3 {[%emt 0:01:05]} Nf6 {[%emt 0:00:40]} 19. Nc3 {[%emt 0:01:22]} Qd7 {[%emt 0:00:35]} 20. Rac1 {[%emt 0:00:53]} Rfd8 {[%emt 0:03:09]} 21. e3 {[%emt 0:01:19]} Rc7 {[%emt 0:08:34]} 22. Ne2 {[%emt 0:05:53]} Rxc1 {[%emt 0:06:18]} 23. Rxc1 {[%emt 0:00:25]} Rc8 {[%emt 0:00:05]} 24. Rxc8+ {[%emt 0:03:03]} Qxc8 {[%emt 0:00:07]} 25. f3 {[%emt 0:01:50]} Nde8 {[%emt 0:17:35]} 26. Bf1 {[%emt 0:03:55]} h5 {[%emt 0:01:04]} 27. h3 {[%emt 0:06:01]} Qc7 {[%emt 0:02:25]} 28. Qc3 {[%emt 0:01:19]} Qd7 {[%emt 0:06:26]} 29. Be1 {[%emt 0:02:13]} g5 {[%emt 0:08:26]} 30. g4 {[%emt 0:00:59]} hxg4 {[%emt 0:00:28]} 31. hxg4 {[%emt 0:00:05]} Nh7 {[%emt 0:00:18]} 32. Ng3 {[%emt 0:04:13]} Nd6 {[%emt 0:02:23]} 33. Bd3 {[%emt 0:02:40]} Nf6 {[%emt 0:05:34]} 34. Qd2 {[%emt 0:03:53]} Qc6 {[%emt 0:05:46]} 35. a4 {[%emt 0:02:28]} Bf8 {[%emt 0:06:33]} 36. Kf1 {[%emt 0:02:28]} Bg7 {[%emt 0:00:55]} 37. Qc2 {[%emt 0:00:48]} Qxc2 {[%emt 0:03:35]} 38. Bxc2 {[%emt 0:00:04]} a5 {[%emt 0:00:08]} 39. Bd3 {[%emt 0:01:09]} Bf8 {[%emt 0:00:22]} 40. Bd2 {[%emt 0:00:51]} Nd7 {[%emt 0:01:16]} 41. e4 {[%emt 0:37:21]} dxe4 {[%emt 0:31:11]} 42. Nxe4 {[%emt 0:00:21]} f6 {[%emt 0:00:41]} 43. Nxd6 {[%emt 0:05:30]} Bxd6 $16 {[%emt 0:00:03]} 44. Bb5 {[%emt 0:00:15]} Nf8 {[%emt 0:02:22]} 45. Be8 {[%emt 0:00:25]} e5 {[%emt 0:08:33]} 46. d5 {[%emt 0:05:58]} Kg7 {[%emt 0:00:06]} 47. Be3 {[%emt 0:02:43]} Bc7 {[%emt 0:00:44]} 48. Ke2 {[%emt 0:03:44]} Ng6 {[%emt 0:00:03]} 49. Kd3 {[%emt 0:03:42]} Nf4+ {[%emt 0:00:00]} 50. Kc4 {[%emt 0:00:00]} f5 {[%emt 0:07:18]} 51. d6 {[%emt 0:00:00]} Bd8 {[%emt 0:02:13]} 52. gxf5 {[%emt 0:00:00]} Kf6 {[%emt 0:00:48]} 53. Bxf4 {[%emt 0:00:00]} exf4 {[%emt 0:01:04]} 54. Kd5 {[%emt 0:00:00]} Kxf5 {[%emt 0:01:03]} 55. Bd7+ {[%emt 0:00:00]} Kf6 {[%emt 0:00:06]} 56. Bg4 {[%emt 0:00:00]} Kf7 {[%emt 0:00:17]} 57. Kc6 {[%emt 0:00:00]} Bf6 {[%emt 0:02:13]} 58. Kb7 {[%emt 0:00:00]} Be5 {[%emt 0:02:26]} 59. d7 {[%emt 0:00:00]} Bf6 {[%emt 0:00:12]} 60. Kc8 {[%emt 0:00:00]} 1-0

[Event "LTU-chT 2019"]
[Site "Lithuania"]
[Date "2019.03.31"]
[Round "5.3"]
[White "Zickus, Simonas"]
[Black "Sakalauskas, Vaidas"]
[Result "1/2-1/2"]
[ECO "A05"]
[WhiteElo "2330"]
[BlackElo "2346"]
[Annotator "NA"]
[PlyCount "45"]
[EventDate "2019.01.26"]
[EventType "team-tourn"]
[EventCountry "LTU"]
[SourceTitle "playchess.com"]
[Source "ChessBase"]
[SourceQuality "1"]
[TimeControl "40/5400+30:1800+30"]

{[%evp 8,42,16,21,17,14,24,10,30,22,20,40,44,38,54,27,24,32767,32767,31,22,0,29,32767,32767,32767,32767,39,32767,18,32767,32767,32767,32767,32767,0,35]} 1. Nf3 {[%emt 0:00:00]} Nf6 {[%emt 0:00:32]} 2. g3 {[%emt 0:01:12]} g6 {[%emt 0:00:17]} 3. Bg2 {[%emt 0:00:05]} Bg7 {[%emt 0:00:07]} 4. O-O {[%emt 0:00:05]} d5 {[%emt 0:00:31]} 5. d4 {[%emt 0:00:07]} O-O {[%emt 0:00:10]} 6. c4 {[%emt 0:00:03]} dxc4 {[%emt 0:03:03]} 7. Na3 {[%emt 0:00:44]} Nc6 {[%emt 0:00:10]} 8. Nxc4 {[%emt 0:00:30]} Be6 {[%emt 0:00:15]} 9. b3 {[%emt 0:00:24]} a5 {[%emt 0:00:49]} 10. Bb2 {[%emt 0:02:33]} Bd5 {[%emt 0:00:41]} 11. a4 {[%emt 0:01:25]} Nb4 {[%emt 0:02:28]} 12. e3 {[%emt 0:08:10]} Be4 {[%emt 0:04:26] D77: Fianchetto Grünfeld: 6 0-0: Replies other than 6...c6} (12... Ne4 13. Qe2 Nd6 14. Rfd1 c6 15. Ncd2 Ne4 16. Nc4 Qc7 17. Rdc1 Rfd8 18. Nfe5 Nd6 19. e4 Bxc4 20. bxc4 {0-1 (122) Georgiev,K (2636)-Safarli,E (2660) Khanty-Mansiysk 2013}) 13. Ne1 {[%emt 0:09:46]} Bxg2 {[%emt 0:02:07]} 14. Kxg2 {[%emt 0:06:17]} c6 {[%emt 0:02:57]} 15. Nd3 {[%emt 0:17:00]} ({Predecessor:} 15. Ba3 b5 16. Ne5 bxa4 17. bxa4 Qd5+ 18. Qf3 {1-0 (48) Schreiner,P (2471)-Tuncer,U (2329) Austria 2013}) 15... Nxd3 {[%emt 0:16:58]} 16. Qxd3 {[%emt 0:00:13]} Qc7 {[%emt 0:00:59]} 17. e4 {[%emt 0:13:19]} Rfd8 {[%emt 0:02:26]} 18. Qe3 {[%emt 0:01:29]} Nd7 {[%emt 0:06:22]} 19. Rac1 {[%emt 0:03:10]} Nb6 {[%emt 0:01:35]} 20. Ne5 {[%emt 0:04:35]} Nd7 {[%emt 0:00:23]} 21. Nc4 {[%emt 0:03:52]} Nb6 $14 {[%emt 0:01:10]} 22. Ne5 {[%emt 0:01:31]} Nd7 {[%emt 0:01:15]} 23. Nc4 {[%emt 0:00:05]} 1/2-1/2

[Event "LTU-chT 2019"]
[Site "Lithuania"]
[Date "2019.03.31"]
[Round "5.4"]
[White "Vedrickas, Tautvydas"]
[Black "Viskelis, Darius"]
[Result "1/2-1/2"]
[ECO "A06"]
[WhiteElo "2390"]
[BlackElo "2242"]
[Annotator "ChessBase"]
[PlyCount "123"]
[EventDate "2019.01.26"]
[EventType "team-tourn"]
[EventCountry "LTU"]
[SourceTitle "playchess.com"]
[Source "ChessBase"]
[SourceQuality "1"]
[TimeControl "40/5400+30:1800+30"]

1. Nf3 {[%emt 0:00:00]} d5 {[%emt 0:00:00]} 2. c4 {[%emt 0:00:55]} e6 {[%emt 0:00:20]} 3. e3 {[%emt 0:00:54]} Nf6 {[%emt 0:00:23]} 4. b3 {[%emt 0:00:27]} b6 {[%emt 0:01:14]} 5. Bb2 {[%emt 0:01:28]} Bb7 {[%emt 0:01:35]} 6. Be2 {[%emt 0:00:09]} Bd6 {[%emt 0:03:58]} 7. cxd5 {[%emt 0:01:48]} Nxd5 {[%emt 0:02:53]} 8. Nc3 {[%emt 0:00:22]} O-O {[%emt 0:00:22]} 9. Qb1 {[%emt 0:01:56]} a5 {[%emt 0:08:31]} 10. h4 {[%emt 0:03:24]} Nxc3 {[%emt 0:00:42]} 11. Bxc3 {[%emt 0:01:02]} Bb4 {[%emt 0:00:20]} 12. Ng5 {[%emt 0:08:42]} g6 {[%emt 0:00:50]} 13. Qb2 {[%emt 0:08:55]} Bxc3 {[%emt 0:03:09]} 14. Qxc3 {[%emt 0:03:30]} h6 {[%emt 0:00:45]} 15. Bf3 {[%emt 0:10:58]} Bxf3 {[%emt 0:01:46]} 16. Nxf3 {[%emt 0:01:59]} c5 {[%emt 0:05:29]} 17. h5 {[%emt 0:12:16]} g5 {[%emt 0:02:45]} 18. Ne5 {[%emt 0:01:10]} Nd7 {[%emt 0:12:44]} 19. O-O {[%emt 0:15:10]} Nxe5 {[%emt 0:05:58]} 20. Qxe5 {[%emt 0:00:02]} Qd3 {[%emt 0:00:35]} 21. f4 {[%emt 0:01:56]} Rad8 {[%emt 0:03:13]} 22. fxg5 {[%emt 0:00:58]} Rd5 {[%emt 0:04:06]} 23. Qf4 {[%emt 0:12:33]} Rxg5 {[%emt 0:01:25]} 24. Rf2 {[%emt 0:00:19]} Qd5 {[%emt 0:06:54]} 25. Raf1 {[%emt 0:00:32]} Qe5 {[%emt 0:03:33]} 26. Qxe5 {[%emt 0:00:54]} Rxe5 {[%emt 0:00:02]} 27. g4 {[%emt 0:00:07]} Re4 {[%emt 0:07:06]} 28. Rg2 {[%emt 0:01:24]} f6 {[%emt 0:00:25]} 29. Rf4 {[%emt 0:04:12]} Rb4 {[%emt 0:01:37]} 30. d4 {[%emt 0:00:44]} cxd4 {[%emt 0:01:17]} 31. Rxd4 {[%emt 0:00:15]} Rxd4 {[%emt 0:02:45]} 32. exd4 {[%emt 0:00:03]} Rd8 {[%emt 0:01:31]} 33. Rd2 {[%emt 0:00:06]} Kf7 {[%emt 0:00:47]} 34. Kf2 {[%emt 0:00:08]} Ke7 {[%emt 0:00:15]} 35. Ke3 {[%emt 0:00:59]} Rg8 {[%emt 0:00:08]} 36. Kf4 {[%emt 0:01:10]} Kd6 {[%emt 0:00:19]} 37. Rc2 {[%emt 0:00:44]} f5 {[%emt 0:05:13]} 38. gxf5 {[%emt 0:00:36]} Rf8 {[%emt 0:00:01]} 39. Ke4 {[%emt 0:02:48]} Rxf5 {[%emt 0:00:21]} 40. Rc8 {[%emt 0:00:53]} Rxh5 {[%emt 0:00:19]} 41. Rd8+ {[%emt 0:30:32]} Kc7 {[%emt 0:31:19]} 42. Re8 {[%emt 0:01:12]} Rh2 {[%emt 0:01:52]} 43. a4 {[%emt 0:00:00]} Rb2 {[%emt 0:00:00]} 44. Ke5 {[%emt 0:00:00]} Rxb3 {[%emt 0:00:00]} 45. Re7+ {[%emt 0:00:00]} Kd8 {[%emt 0:00:00]} 46. Rh7 {[%emt 0:00:00]} Rb4 {[%emt 0:00:00]} 47. Rxh6 {[%emt 0:00:00]} Rxa4 {[%emt 0:00:00]} 48. Rxe6 {[%emt 0:00:00]} b5 {[%emt 0:02:27]} 49. Rh6 {[%emt 0:00:00]} b4 {[%emt 0:01:28]} 50. Kd6 {[%emt 0:00:00]} Ke8 {[%emt 0:00:30]} 51. Ke6 {[%emt 0:00:00]} Kf8 {[%emt 0:00:05]} 52. Kf6 {[%emt 0:00:00]} Kg8 {[%emt 0:00:11]} 53. Rg6+ {[%emt 0:00:00]} Kh7 {[%emt 0:00:09]} 54. Rg7+ {[%emt 0:00:00]} Kh6 {[%emt 0:01:37]} 55. Rg1 {[%emt 0:00:00]} Kh5 {[%emt 0:00:09]} 56. d5 {[%emt 0:01:43]} b3 {[%emt 0:00:32]} 57. d6 {[%emt 0:01:11]} Rd4 {[%emt 0:01:27]} 58. Rg5+ {[%emt 0:00:37]} Kh4 {[%emt 0:01:14]} 59. Rxa5 {[%emt 0:00:07]} Rxd6+ {[%emt 0:06:02]} 60. Ke5 {[%emt 0:00:09]} Rg6 {[%emt 0:00:03]} 61. Kd4 {[%emt 0:01:05]} Rb6 {[%emt 0:01:39]} 62. Ra1 {[%emt 0:00:12]} 1/2-1/2

[Event "LTU-chT 2019"]
[Site "Lithuania"]
[Date "2019.03.31"]
[Round "5.5"]
[White "Bastys, Robertas"]
[Black "Brazdzionis, Andrius"]
[Result "1/2-1/2"]
[ECO "A05"]
[WhiteElo "2227"]
[BlackElo "2311"]
[Annotator "NA"]
[PlyCount "33"]
[EventDate "2019.01.26"]
[EventType "team-tourn"]
[EventCountry "LTU"]
[SourceTitle "playchess.com"]
[Source "ChessBase"]
[SourceQuality "1"]
[TimeControl "40/5400+30:1800+30"]

1. Nf3 {[%emt 0:10:14]} Nf6 {[%emt 0:00:00]} 2. g3 {[%emt 0:00:35]} d5 {[%emt 0:01:44]} 3. Bg2 {[%emt 0:00:30]} e6 {[%emt 0:01:48]} 4. O-O {[%emt 0:00:30]} b5 {[%emt 0:00:58]} 5. d4 {[%emt 0:05:03]} Bb7 {[%emt 0:00:30]} 6. Nc3 {[%emt 0:03:56]} b4 {[%emt 0:00:57]} 7. Na4 {[%emt 0:02:22]} Nbd7 {[%emt 0:00:36]} 8. Bg5 {[%emt 0:12:12]} c5 {[%emt 0:11:51]} 9. c3 {[%emt 0:13:02]} bxc3 {[%emt 0:01:16]} 10. Nxc3 $11 {[%emt 0:02:08]} Be7 {[%emt 0:00:33]} 11. dxc5 {[%emt 0:05:21]} Nxc5 {[%emt 0:00:30]} 12. Rc1 {[%emt 0:01:40]} O-O {[%emt 0:01:23]} 13. b4 {[%emt 0:05:35]} Nce4 {[%emt 0:01:16]} 14. Nxe4 {[%emt 0:02:03]} Nxe4 {[%emt 0:00:37]} 15. Bxe7 {[%emt 0:00:37]} Qxe7 {[%emt 0:00:30]} 16. Qd4 {[%emt 0:03:14]} f6 {[%emt 0:02:56]} 17. Nd2 {[%emt 0:03:27]} 1/2-1/2

[Event "LTU-chT 2019"]
[Site "Lithuania"]
[Date "2019.03.31"]
[Round "5.8"]
[White "Vardanyan, Aras"]
[Black "Tvarijonas, Tomas"]
[Result "1-0"]
[ECO "D52"]
[WhiteElo "1916"]
[BlackElo "2248"]
[Annotator "NA"]
[PlyCount "105"]
[EventDate "2019.01.26"]
[EventType "team-tourn"]
[EventCountry "LTU"]
[SourceTitle "playchess.com"]
[Source "ChessBase"]
[SourceQuality "1"]
[TimeControl "40/5400+30:1800+30"]

1. d4 {[%emt 0:00:00]} Nf6 {[%emt 0:00:00]} 2. c4 {[%emt 0:00:00]} e6 {[%emt 0:00:00]} 3. Nf3 {[%emt 0:00:00]} d5 {[%emt 0:00:23]} 4. Nc3 {[%emt 0:02:12]} c6 {[%emt 0:00:05]} 5. Bg5 {[%emt 0:00:07]} Nbd7 {[%emt 0:00:42]} 6. e3 {[%emt 0:01:22] LiveBook: 2363 Games} Qa5 {[%emt 0:01:53]} 7. cxd5 {[%emt 0:05:29]} exd5 {[%emt 0:10:51]} 8. Nd2 {[%emt 0:00:30]} Bd6 {[%emt 0:08:55]} 9. Bd3 {[%emt 0:04:46] D52: Queen's Gambit Declined: Cambridge Springs Variation} O-O {[%emt 0:03:39]} 10. Bh4 {[%emt 0:12:33]} (10. O-O Qc7 11. Nf3 Re8 12. Rc1 Qb8 13. Qc2 h6 14. Bh4 Ng4 15. h3 Ngf6 16. e4 dxe4 17. Bxe4 Nxe4 18. Nxe4 Nf8 19. Nxd6 Qxd6 {1-0 (45) Tomashevsky,E (2758)-Nguyen,N (2634) Baku 2015}) 10... Re8 {[%emt 0:06:50]} 11. Qc2 {[%emt 0:05:11]} h6 {[%emt 0:09:47]} 12. Bf5 $146 {[%emt 0:12:50]} ({Predecessor:} 12. a3 Qd8 13. O-O Nf8 14. Kh1 g5 15. Bg3 Bxg3 16. hxg3 Bg4 {½-½ (71) Munoz Moreno,F (2562)-Vassiliev,I (2332) ICCF email 2012}) 12... b5 {[%emt 0:08:08]} 13. O-O {[%emt 0:07:17]} Qc7 {[%emt 0:08:53]} 14. Bg3 {[%emt 0:01:06]} Bxg3 {[%emt 0:00:59]} 15. hxg3 {[%emt 0:02:17]} Nf8 {[%emt 0:05:46]} 16. Bd3 {[%emt 0:05:58]} Qd6 {[%emt 0:03:15]} 17. Rac1 {[%emt 0:04:09]} Bd7 {[%emt 0:03:47]} 18. Nf3 {[%emt 0:02:18]} Re7 {[%emt 0:05:16]} 19. Ne2 {[%emt 0:02:04]} Ng4 {[%emt 0:03:30]} 20. Bf5 {[%emt 0:05:31]} Rc8 {[%emt 0:01:38]} 21. Nf4 {[%emt 0:01:49]} g6 {[%emt 0:02:46]} 22. Bxg4 {[%emt 0:01:55]} Bxg4 {[%emt 0:00:02]} 23. Ne5 {[%emt 0:00:12]} Rxe5 {[%emt 0:04:26]} 24. dxe5 {[%emt 0:00:06]} Qxe5 {[%emt 0:00:04]} 25. b4 {[%emt 0:01:47]} Nd7 {[%emt 0:01:39]} 26. a4 {[%emt 0:02:47]} a6 {[%emt 0:00:45]} 27. axb5 {[%emt 0:00:36]} axb5 {[%emt 0:00:04] [#]} 28. Qa2 $16 {[%emt 0:00:47]} ({Better is} 28. Nxg6 $1 $18 {[%mdl 512]} fxg6 29. Qxg6+ Qg7 30. Rxc6) 28... Nb6 {[%emt 0:00:44]} 29. Qa1 {[%emt 0:01:57]} Qg5 {[%emt 0:01:56]} 30. Qd4 {[%emt 0:00:50]} Nc4 {[%emt 0:00:08]} 31. Ra1 {[%emt 0:00:56]} h5 {[%emt 0:01:50]} 32. Ra7 {[%emt 0:00:08]} Qe5 {[%emt 0:01:40]} 33. Qc5 {[%emt 0:02:29]} Nd2 {[%emt 0:01:52]} 34. Re1 {[%emt 0:02:21]} g5 {[%emt 0:00:56]} 35. Nd3 {[%emt 0:01:44]} Qf5 {[%emt 0:00:22]} 36. Qe7 {[%emt 0:00:26]} Ne4 {[%emt 0:02:12]} 37. Qe5 {[%emt 0:03:06]} Nxg3 {[%emt 0:02:02]} 38. Qxg3 {[%emt 0:00:58]} Qxd3 {[%emt 0:00:02]} 39. f3 {[%emt 0:00:22]} Bf5 {[%emt 0:00:50]} 40. Qxg5+ {[%emt 0:00:26]} Bg6 {[%emt 0:00:08]} 41. Rea1 {[%emt 0:32:54]} Qc3 {[%emt 0:12:27]} 42. Ra8 {[%emt 0:00:00]} Rxa8 {[%emt 0:00:02]} 43. Rxa8+ {[%emt 0:00:00]} Kg7 {[%emt 0:00:18]} 44. Qe7 {[%emt 0:00:00]} Kh7 {[%emt 0:01:17]} 45. Kh2 {[%emt 0:00:00]} Qg7 {[%emt 0:03:22]} 46. Rd8 {[%emt 0:00:00]} Bd3 {[%emt 0:00:52]} 47. Rd7 {[%emt 0:00:00]} Bf5 {[%emt 0:01:14]} 48. Rd6 {[%emt 0:00:00]} Be6 {[%emt 0:00:24]} 49. Qh4 {[%emt 0:00:00]} Qe5+ {[%emt 0:01:13]} 50. Qf4 {[%emt 0:00:00]} Qc3 {[%emt 0:01:54]} 51. Qd4 {[%emt 0:00:00]} Qc4 {[%emt 0:01:36]} 52. Qf6 {[%emt 0:00:00]} c5 {[%emt 0:02:01]} 53. Rd8 {[%emt 0:00:00]} 1-0

[Event "LTU-chT 2019"]
[Site "Lithuania"]
[Date "2019.03.31"]
[Round "5.9"]
[White "Bieliauskas, Marius"]
[Black "Vaitkevicius, Paulius"]
[Result "1-0"]
[ECO "D55"]
[WhiteElo "2183"]
[BlackElo "1967"]
[Annotator "NA"]
[PlyCount "61"]
[EventDate "2019.01.26"]
[EventType "team-tourn"]
[EventCountry "LTU"]
[SourceTitle "playchess.com"]
[Source "ChessBase"]
[SourceQuality "1"]
[TimeControl "40/5400+30:1800+30"]

1. d4 {[%emt 0:00:00]} d5 {[%emt 0:02:37]} 2. Nf3 {[%emt 0:00:01]} Nf6 {[%emt 0:01:00]} 3. c4 {[%emt 0:00:12]} e6 {[%emt 0:00:30]} 4. Nc3 {[%emt 0:02:22]} Be7 {[%emt 0:00:51] LiveBook: 20258 Games} 5. Bg5 {[%emt 0:01:44]} O-O {[%emt 0:03:14]} 6. e3 {[%emt 0:02:08]} c6 {[%emt 0:02:06]} 7. Qc2 {[%emt 0:02:20]} h6 {[%emt 0:02:34]} 8. Bh4 {[%emt 0:05:06]} Nbd7 {[%emt 0:02:30]} 9. cxd5 {[%emt 0:06:41]} exd5 {[%emt 0:05:45]} 10. Bd3 {[%emt 0:01:22]} Nh5 {[%emt 0:06:55]} 11. Bxe7 {[%emt 0:00:45]} Qxe7 {[%emt 0:00:03]} 12. O-O {[%emt 0:04:30]} Nhf6 {[%emt 0:10:53]} 13. Rab1 $11 {[%emt 0:01:52]} Rd8 {[%emt 0:04:18]} 14. b4 {[%emt 0:01:38]} a6 {[%emt 0:02:09]} 15. a4 {[%emt 0:00:16]} a5 {[%emt 0:12:10]} 16. b5 {[%emt 0:16:54]} c5 {[%emt 0:00:23]} 17. Rfe1 {[%emt 0:01:26]} Nb6 {[%emt 0:12:12]} 18. Ne5 {[%emt 0:23:09]} Be6 {[%emt 0:02:25]} 19. f4 {[%emt 0:02:27]} Rac8 {[%emt 0:01:50]} 20. Bf1 {[%emt 0:09:54]} cxd4 {[%emt 0:09:17]} 21. exd4 {[%emt 0:00:06]} Ne4 {[%emt 0:01:07]} 22. Re3 {[%emt 0:03:12]} Rc7 {[%emt 0:01:14]} 23. Qb2 {[%emt 0:03:06]} Rxc3 {[%emt 0:02:54]} 24. Rxc3 {[%emt 0:00:03]} Nxa4 {[%emt 0:00:03]} 25. Qa3 {[%emt 0:00:01]} Qf6 {[%emt 0:05:07]} 26. Rc2 {[%emt 0:01:07]} Qxf4 {[%emt 0:01:48]} 27. Qxa4 {[%emt 0:00:41]} Qe3+ {[%emt 0:00:44]} 28. Kh1 {[%emt 0:00:06]} Rc8 {[%emt 0:00:48]} 29. Rxc8+ {[%emt 0:03:47]} Bxc8 {[%emt 0:00:01]} 30. Nd3 {[%emt 0:01:26]} Nd2 {[%emt 0:01:54]} 31. Re1 {[%emt 0:00:51]} 1-0

[Event "LTU-chT 2019"]
[Site "Lithuania"]
[Date "2019.03.31"]
[Round "5.10"]
[White "Gaizauskaite, Ginte"]
[Black "Stremavicius, Pijus"]
[Result "0-1"]
[ECO "A45"]
[WhiteElo "1852"]
[BlackElo "2082"]
[Annotator "NA"]
[PlyCount "66"]
[EventDate "2019.01.26"]
[EventType "team-tourn"]
[EventCountry "LTU"]
[SourceTitle "playchess.com"]
[Source "ChessBase"]
[SourceQuality "1"]
[TimeControl "40/5400+30:1800+30"]

1. d4 {[%emt 0:00:00]} Nf6 {[%emt 0:00:00]} 2. g3 {[%emt 0:00:00]} d5 {[%emt 0:00:09]} 3. Nf3 {[%emt 0:00:00]} e6 {[%emt 0:00:40]} 4. c4 {[%emt 0:00:10]} dxc4 {[%emt 0:00:10]} 5. Qa4+ {[%emt 0:02:48]} Nbd7 {[%emt 0:00:05]} 6. Ne5 {[%emt 0:02:31] E01: Catalan: Early deviations} (6. Bg2 $11 {remains equal.} a6 7. Nc3 Rb8 8. Qxc4 b5 9. Qd3 Bb7 10. Bf4 Rc8 11. O-O c5 12. dxc5 Bxc5 13. Ne5 Bxg2 14. Kxg2 Nxe5 15. Qxd8+ Kxd8 16. Bxe5 Ke7 17. Rfd1 Ng4 18. Bxg7 Nxf2 19. Bxh8 Nxd1 20. Rxd1 Rxh8 {½-½ (40) Grachev,B (2650)-Khismatullin,D (2639) Moscow 2017}) 6... c5 {[%emt 0:01:59]} 7. Be3 $146 {[%emt 0:19:23]} ({Predecessor:} 7. Nxc4 a6 8. Bg2 Be7 9. Bd2 O-O 10. Ba5 Qe8 11. Bc7 Nb8 12. Qxe8 Nxe8 {½-½ (67) Vasileva,V (1705)-Atanasova,E (1743) Plovdiv 2011}) 7... Nd5 {[%emt 0:02:34]} 8. Nc3 {[%emt 0:02:33]} N5b6 {[%emt 0:01:03]} (8... Nxe3 $17 9. fxe3 Be7) 9. Qb5 {[%emt 0:05:52]} cxd4 {[%emt 0:07:27]} (9... a6 $5 10. Qa5 $8 Nxe5 11. dxe5 Nd5 12. Qxd8+ Kxd8 $11) 10. Bxd4 {[%emt 0:00:34]} Qc7 {[%emt 0:02:16]} 11. Bg2 {[%emt 0:17:24]} a6 {[%emt 0:10:03]} 12. Qa5 {[%emt 0:03:52]} Bc5 {[%emt 0:00:10]} 13. Nxd7 {[%emt 0:07:34]} Bxd4 {[%emt 0:00:12]} 14. Nxb6 {[%emt 0:00:13]} Bxb6 {[%emt 0:03:47]} 15. Qg5 {[%emt 0:01:08]} Qc5 {[%emt 0:00:56]} 16. Qxg7 {[%emt 0:05:29]} Qxf2+ {[%emt 0:00:10]} 17. Kd2 {[%emt 0:00:16]} Bd4 {[%emt 0:00:20]} 18. Qg5 {[%emt 0:08:02]} Qxg2 {[%emt 0:00:32]} 19. Rhf1 {[%emt 0:01:26]} Rf8 {[%emt 0:02:31]} 20. Rad1 {[%emt 0:02:49]} Bd7 $19 {[%emt 0:00:44]} 21. Qf4 {[%emt 0:03:44]} e5 {[%emt 0:01:35]} 22. Qh4 {[%emt 0:00:28]} Bxc3+ {[%emt 0:02:16]} 23. Kxc3 {[%emt 0:02:11]} Qxe2 {[%emt 0:00:50]} 24. Qf6 {[%emt 0:01:51]} Qe3+ {[%emt 0:00:14]} 25. Kc2 {[%emt 0:00:33]} Ba4+ {[%emt 0:00:11]} 26. Kb1 {[%emt 0:01:39]} Bxd1 {[%emt 0:00:13]} 27. Rxd1 {[%emt 0:00:03]} Qe4+ {[%emt 0:00:16]} 28. Kc1 {[%emt 0:00:24]} c3 {[%emt 0:02:19]} 29. Qd6 {[%emt 0:01:07]} cxb2+ {[%emt 0:00:06]} 30. Kxb2 {[%emt 0:00:07]} Qc6 {[%emt 0:02:00]} 31. Qxe5+ {[%emt 0:00:39]} Qe6 {[%emt 0:00:03]} 32. Qa5 {[%emt 0:01:29]} Qe2+ {[%emt 0:00:50]} 33. Rd2 {[%emt 0:00:12]} Qb5+ {[%emt 0:00:02]} 0-1